Cogmind - Beta 14 @@@ ROGUE MODE // 2024.08.08 @ 22:37:22 Player: FauxMaasks Result: Smashed by cave-in Performance ------------- Evolutions (0) 0 Regions Visited (2) 400 Robots Destroyed (23) 115 Value Destroyed (468) 468 Prototype IDs (0) 0 Alien Tech Used (0) 0 Bonus (0) 0 TOTAL SCORE: 983 Bonus ------- None Cogmind --------- Core Integrity 0/250 Matter 103/300 Energy 123/125 System Corruption 0% Temperature Cool (0) Movement Rolling (129) Ox2 Location -10/Subcaves Parts ------- > --- POWER (1) -------- Light Ion Engine > --- PROPULSION (2) --- Compact Wheel Subdweller Monowheel > --- UTILITY (2) ------ Huge Storage Unit Makeshift Light Armor Plating > --- WEAPON (2) ------- Subdweller Machine Gun Light Cannon > --- INVENTORY (25) --- Wheel Wheel Compact Wheel Light Armor Plating Medium Laser Light Assault Rifle Light Assault Rifle Light Assault Rifle Light Cannon Scrap Shield Fragment (46) SUBCON Basin (Full) Peak State ------------ > --- POWER ------------ Light Ion Engine > --- PROPULSION ------- Compact Wheel Subdweller Monowheel > --- UTILITY ---------- Huge Storage Unit Makeshift Light Armor Plating > --- WEAPON ----------- Subdweller Machine Gun Light Cannon > --- INVENTORY -------- Wheel Wheel Compact Wheel Light Armor Plating Medium Laser Light Assault Rifle Light Assault Rifle Light Assault Rifle Light Cannon Scrap Shield Fragment SUBCON Basin [Rating: 31] Favorites ----------- Power Light Ion Engine Engine Light Ion Engine Propulsion Compact Wheel Wheel Compact Wheel Utility Huge Storage Unit Device Seismic Detector Storage Huge Storage Unit Protection Propulsion Shielding Weapon Light Assault Rifle Energy Gun Medium Laser Ballistic Gun Light Assault Rifle Ballistic Cannon Light Cannon Launcher Grenade Launcher Build | -11 -10 -10 ------- Run | Yrd Mat Sub Slots Evolved . | . . . Power . | . . . Propulsion . | . . . Utility . | . . . Weapon . | . . . Parts Attached 32 | 7 7 18 Power 4 | 1 1 2 Engine 4 | 1 1 2 Core . | . . . Reactor . | . . . Propulsion 7 | 2 2 3 Treads . | . . . Leg . | . . . Wheel 7 | 2 2 3 Hover . | . . . Flight . | . . . Utility 6 | 2 1 3 Device 2 | 1 . 1 Storage 2 | 1 1 . Processor . | . . . Hackware . | . . . Protection 2 | . . 2 Artifact . | . . . Weapon 15 | 2 3 10 Energy Gun 1 | 1 . . Energy Cannon . | . . . Ballistic Gun 8 | 1 2 5 Ballistic Cannon 2 | . . 2 Launcher 4 | . 1 3 Special Weapon . | . . . Impact Weapon . | . . . Slashing Weapon . | . . . Piercing Weapon . | . . . Special Melee Weapon . | . . . Unidentified Prototypes . | . . . Parts Lost 11 | . 3 8 Power 2 | . 1 1 Propulsion 3 | . 1 2 Utility 1 | . 1 . Weapon 5 | . . 5 Highest Loss Streak 5 | . 3 5 To Critical Strikes 1 | . . 1 Average Slot Usage (%) 91 | . 87 95 Engine 12 | . 11 12 Wheel 26 | . 26 25 Device 4 | . 5 3 Storage 14 | . 14 14 Protection 4 | . . 9 Energy Gun 3 | . 5 . Ballistic Gun 19 | . 22 15 Ballistic Cannon 4 | . . 10 Peak Build Rating 31 | 7 8 31 Average Rating 13 | 4 6 22 On Entrance 5 | . 7 8 Naked Turns . | . . . Heaviest Build 94 | 12 87 94 Greatest Support 36 | 26 32 36 Greatest Overweight (x) 27 | . 5 27 Average Overweight (x) 2 | . 2 2 Largest Inventory Capacity 25 | 8 25 25 Average Capacity 23 | 7 23 25 Most Carried 25 | 3 21 25 Average Carried 15 | 1 9 23 Final Capacity 25 | 8 25 25 Final Carried 25 | 1 21 25 Class Distribution -------------------- 96% | Mutant 3% | Scavenger-Mutant Dominant Class ---------------- Mutant | -10/Materials Mutant | -10/Subcaves Resources | -11 -10 -10 ----------- Run | Yrd Mat Sub Matter Collected 661 | 185 240 236 Remotely . | . . . Salvage Created 565 | 17 366 182 Parts 44 | 1 29 14 Haulers Intercepted 1 | . 1 . Recyclers Shooed 1 | . 1 . Parts Field Recycled . | . . . Retrieved Matter . | . . . Parts Self-Destructed 13 | . . 13 Prevented . | . . . Kills | -11 -10 -10 ------- Run | Yrd Mat Sub Combat Hostiles Destroyed 18 | . 13 5 Guns 13 | . 10 3 Cannons 1 | . . 1 AOE 4 | . 3 1 Classes Destroyed 8 | 1 6 1 Worker 1 | . 1 . Tunneler 1 | 1 . . Hauler 1 | . 1 . Operator 1 | . 1 . Watcher 1 | . 1 . Swarmer 9 | . 9 . Grunt 4 | . 4 . Subdweller 5 | . . 5 Best Kill Streak 4 | 1 4 2 Combat Bots Only 4 | . 4 2 Max Kills in Single Turn 3 | 1 3 1 Gunslinging . | . . . Exploded 3 | . 3 1 Melee . | . . . Uniques/NPCs Destroyed . | . . . Combat | -11 -10 -10 -------- Run | Yrd Mat Sub Hostile Shots Fired 88 | . 60 28 Missed 17 | . 10 7 Damage Taken 1101 | . 494 607 Core 258 | . 96 162 Absorbed by Shields . | . . . Core Remaining (%) 100 | 100 . . Volleys Fired 115 | 5 45 65 Largest 2 | 2 2 2 Hottest 70 | 70 70 70 Shots Fired 182 | 10 89 83 Gun 131 | 10 88 33 Cannon 40 | . . 40 Launcher 11 | . 1 10 Special . | . . . Kinetic 153 | 5 75 73 Thermal 18 | 5 13 . Explosive 11 | . 1 10 Electromagnetic . | . . . Robot Hit Streak 18 | 4 14 18 Robot Miss Streak 3 | 1 3 2 Penetration Max . | . . . Secondary Targets . | . . . Shots Hit Robots 107 | 7 61 39 Core Hits 53 | 2 29 22 Critical Kills 1 | . 1 . Critical Parts Destroyed . | . . . Critical Strikes 4 | . 4 . Burn 3 | . 3 . Destroy 1 | . 1 . Melee Attacks . | . . . Impact . | . . . Slashing . | . . . Piercing . | . . . Sneak Attacks . | . . . Combat Hostiles . | . . . Follow-up Attacks . | . . . Damage Inflicted 1679 | 76 654 949 Guns 848 | 76 545 227 Cannons 49 | . . 49 Explosions 782 | . 109 673 Melee . | . . . Ramming . | . . . Kinetic 706 | 26 404 276 Thermal 191 | 50 141 . Explosive 782 | . 109 673 Electromagnetic . | . . . Impact . | . . . Slashing . | . . . Piercing . | . . . Highest Corruption . | . . . Average Corruption . | . . . Corruption Purged . | . . . Corruption Blocked . | . . . Overload Shots . | . . . Overflow Damage . | . . . Projectiles . | . . . Explosions . | . . . Melee . | . . . Knockbacks . | . . . Impact . | . . . Kinetic . | . . . Secondary . | . . . Self-Inflicted Damage 54 | . 31 23 Shots 2 | . 1 1 Rammed . | . . . Targets Rammed . | . . . Kicked . | . . . Crushed . | . . . Highest Temperature 378 | 50 94 378 Average Temperature 77 | 25 38 205 Received Heat Transfer 727 | . 114 613 Effects 1 | . . 1 Shutdowns 1 | . . 1 Siege Activations . | . . . Robots Corrupted . | . . . Combat Hostiles . | . . . Parts Fried . | . . . Impact Corruptions . | . . . Robots Melted . | . . . Combat Hostiles . | . . . Parts Melted 1 | 1 . . Heat Transferred 777 | 148 629 . Parts Sabotaged . | . . . Parts Stolen . | . . . Parts Stripped . | . . . Power Chain Reactions . | . . . Alert | -11 -10 -10 ------- Run | Yrd Mat Sub Peak Influence 212 | 5 212 . Initial 3 | . 3 . Average 89 | . 94 . Maximum Alert Level 1 | . 1 . Low Security (%) 98 | 100 98 . Level 1 1 | . 1 . Level 2 . | . . . Level 3 . | . . . Level 4 . | . . . Level 5 . | . . . High Security . | . . . Max Security . | . . . Squads Dispatched 3 | . 3 . Investigation 2 | . 2 . Extermination . | . . . Reinforcement 1 | . 1 . Assault . | . . . Garrison . | . . . Intercept . | . . . Searches Triggered . | . . . Construction Impeded . | . . . Haulers Reinforced . | . . . Active Scanning Responses . | . . . Cargo Convoy Interrupts . | . . . Stealth | -11 -10 -10 --------- Run | Yrd Mat Sub Distress Signals 2 | . 2 . Communications Jammed . | . . . Distress Signals . | . . . Times Spotted 29 | . 24 5 Peak Tracking Total 5 | . 5 2 Tactical Retreats 3 | . 3 . Traps | -11 -10 -10 ------- Run | Yrd Mat Sub Traps Triggered 3 | . 2 1 Indirectly . | . . . Trap Hack Attempts . | . . . Triggered . | . . . Disarmed . | . . . Reprogrammed . | . . . Reused . | . . . Traps Extracted . | . . . Installed . | . . . Triggered . | . . . Machines | -11 -10 -10 ---------- Run | Yrd Mat Sub Machines Disabled . | . . . Max in Single Turn . | . . . Machines Repaired . | . . . Machines Dismantled . | . . . Machines Sabotaged . | . . . Overloaded Fab Kills . | . . . Hacking | -11 -10 -10 --------- Run | Yrd Mat Sub Machines Accessed 9 | . 7 2 Terminals 7 | . 7 . Fabricators . | . . . Repair Stations . | . . . Recycling Units . | . . . Scanalyzers . | . . . Garrison Access . | . . . Total Hacks 19 | . 16 3 Successful 12 | . 9 3 Failed 7 | . 7 . Catastrophic 1 | . 1 . Database Lockouts . | . . . Manual 10 | . 10 . Terminals 16 | . 16 . Fabricators . | . . . Repair Stations . | . . . Recycling Units . | . . . Scanalyzers . | . . . Garrison Access . | . . . Terminal Hacks 10 | . 7 3 Record 3 | . 2 1 Robot Analysis 3 | . 3 . Open Door 1 | . . 1 Locate Traps 1 | . 1 . Maintenance Status 1 | . 1 . Release Object 1 | . . 1 Fabricator Hacks . | . . . Repair Station Hacks . | . . . Recycling Unit Hacks . | . . . Scanalyzer . | . . . Garrison Access Hacks . | . . . Unauthorized Hacks 2 | . 2 . Terminals 2 | . 2 . Botnet 2 | . 2 . Fabricators . | . . . Repair Stations . | . . . Recycling Units . | . . . Scanalyzers . | . . . Garrison Access . | . . . Data Cores Recovered 1 | . 1 . Used . | . . . Hacking Detections 5 | . 5 . Full Trace Events . | . . . Feedback Events . | . . . Feedback Blocked . | . . . Robot Schematics Acquired . | . . . Robots Built . | . . . Authchips . | . . . Time . | . . . Total Robot Build Rating . | . . . Part Schematics Acquired . | . . . Parts Built . | . . . Authchips . | . . . Time . | . . . Total Part Build Rating . | . . . Parts Repaired . | . . . Time . | . . . Parts Recycled . | . . . Recycled Matter . | . . . Retrieved Matter . | . . . Retrieved Components . | . . . Parts Scanalyzed . | . . . Part Schematics Acquired . | . . . Parts Damaged . | . . . Bothacking | -11 -10 -10 ------------ Run | Yrd Mat Sub Used RIF Installer . | . . . Robots Hacked . | . . . Non-combat . | . . . Combat . | . . . Robot Hacks Applied . | . . . Relay Couplers Released . | . . . Fabnet Peak Effective % . | . . . Robots Rewired . | . . . Allies Hacked . | . . . Hacks Repelled . | . . . Allies | -11 -10 -10 -------- Run | Yrd Mat Sub Total Allies . | . . . Largest Group . | . . . Highest-Rated Group . | . . . Highest-Rated Ally . | . . . Total Orders . | . . . Ally Attacks . | . . . Total Damage . | . . . Kills . | . . . Allies Corrupted . | . . . Allies Melted . | . . . Intel | -11 -10 -10 ------- Run | Yrd Mat Sub Robot Analysis Total 3 | . 3 . Derelict Logs Recovered . | . . . Drone Launches . | . . . Drone Recoveries . | . . . Exploration | -11 -10 -10 ------------- Run | Yrd Mat Sub Turns Passed 2463 | 69 1351 1043 Spaces Moved 1551 | 49 868 634 Core 4 | 1 . 3 Treads . | . . . Legs . | . . . Wheels 1547 | 48 868 631 Hover . | . . . Flight . | . . . Fastest Speed 50 | 50 90 129 Average Speed 131 | 88 130 136 Slowest Speed 1400 | 90 175 1400 Overloaded Moves . | . . . Propulsion Burnouts . | . . . Robots Hopped . | . . . Cave-ins Triggered 1 | . . 1 Exploration Rate (%) 49 | 4 99 44 Regions Visited 2 Branch Regions 1 Pre-discovered Areas 1 | . . 1 Known Exits Taken . | . . . Unknown Exits Taken 2 | 1 1 . Scrap Searched 2 | . . 2 Spaces Dug 16 | . 9 7 Terrain Destroyed 34 | . 9 25 Melee . | . . . Projectile 7 | . . 7 AOE 27 | . 9 18 Terrain Rammed . | . . . Walls Destroyed . | . . . Machines Disabled . | . . . Actions | -11 -10 -10 --------- Run | Yrd Mat Sub Total 1811 | 63 1013 735 Wait 78 | . 74 4 Move 1548 | 48 867 633 Hop . | . . . Pick Up 25 | 3 19 3 Fast Attach 13 | 5 3 5 Attach 8 | 2 . 6 Detach 2 | . . 2 Swap 11 | . 4 7 Drop 11 | . 1 10 Fire 115 | 5 45 65 Melee . | . . . Ram . | . . . Kick . | . . . Crush . | . . . Escape Stasis . | . . . Rewire . | . . . Trap . | . . . Miscellaneous . | . . . Route ------- -11/Scrapyard -10/Materials (discovered 5 exits: [*Mat x3] / [*Min] / *Sub) -10/Subcaves History --------- Turn | Location | Event 22 | -11/Scrapyard | Discovered new exit (range 16) 70 | -11/Scrapyard | Entered Materials 260 | -10/Materials | Discovered new exit (range 8) 308 | -10/Materials | Build established: Mutant 404 | -10/Materials | Discovered new exit (range 5) 680 | -10/Materials | Lost 3 parts (1p1n1u) 1106 | -10/Materials | Discovered new exit (range 11) 1309 | -10/Materials | Discovered new exit (range 6) 1387 | -10/Materials | Discovered new exit (range 9) 1421 | -10/Materials | Entered Subcaves 1423 | -10/Subcaves | Shifting Twisted Machinery released Sub. Power Source 1430 | -10/Subcaves | Shifting Twisted Machinery released Sub. Power Source 1507 | -10/Subcaves | Learned location of Zion (-7) 1507 | -10/Subcaves | Met a Zionite searching for "candidates" 1616 | -10/Subcaves | Lost 5 parts (1p2n2w) 1670 | -10/Subcaves | A swath of the cavern ceiling suddenly collapsed 1683 | -10/Subcaves | Core integrity fell below 50% 1695 | -10/Subcaves | Core integrity fell below 20% 1793 | -10/Subcaves | Found SUBCON Basin 2464 | -10/Subcaves | Crushed by falling debris 2464 | -10/Subcaves | Smashed by cave-in Last Messages --------------- 02022_ The unstable cave ceiling collapses. 02026_ Acquired 20 matter. 02133_ Grenade Launcher destroyed. 02135_ LL-KH2(R) destroyed. 02143_ Acquired 46 matter. 02151_ Searching scrap... 02151_ Found Sub. Power Source. 02151_ Found Sub. Monowheel. 02151_ Found 45 Matter. 02152_ Acquired 45 matter. 02152_ Searching scrap... 02152_ Found Mak. Light Armor Plating. 02152_ Found Sub. Machine Gun. 02152_ Found 42 Matter. 02153_ Acquired 42 matter. 02155_ Acquired Mak. Light Armor Plating. 02157_ Dropped Propulsion Shielding. 02159_ Acquired Sub. Machine Gun. 02464_ The unstable cave ceiling collapses. 02464_ Crushed by falling debris. Map ----- +----------------------------------------------------+ | ?????????????????????????????????????????????????? | | ?????????????????????????????????????????????????? | | ?????????????????????????????????????????????????? | | ?????????????????????????????????????????????????? | | ?????????????????????????????????????????????????? | | ?????????????????????????????????????????????????? | | ?????????????????????????????????????????????????? | | ?????????????????????????????????????????????????? | | ?????????????????????????????????????????????????? | | ?????????????????????????????????????????????????? | | ?????????????????????????????????????????????????? | | ?????????????????????????????????????????????????? | | ?????????????????????????????????????????????????? | | ?????????????????????????????????????????????????? | | ?????????????????????????????????????????????????? | | ?????????????????????????????????????????????????? | | ?????????????????????????????????????????????????? | | ?????????????????????????????????????????????????? | | ?????????????????????????????????????????????????? | | ?????????????????????????????????????????????????? | | ?????????????????????????????????????????????????? | | ?????????????????????????????????????????????????? | | ?????????????????????????????????????????????????? | | ??????????????????????#####?####?#####???????????? | | ?????????????????????## # ### ### #???????????? | | ?????????????????????# @ ##??????????? | | ?????????????????????##### ##????##???? | | ?????????????????????????# ### ## ##???# #### | | ?????????????????????????### ## #???# # | | ?????????????????????????## #?# #???# | | ?????????????????????????# ### ###### | | ?????????????????????????## ### ### | | ??????????????????????????### ## ### ### | | ????????????????????????????#### ### ## | | ???????????????????????????????# #?# #### | | ???????????????????????????????# #?# ##### | | ???????????????????????????????# #?#### ### # | | ??????????????????????????????? ????## ## ## | | ?????????????????????????????? ###???## ## ##? | | ????????????????????????#####? ##?????# ## #?? | | ????????????????????????# #####???###?# ## #?? | | ????????????????????????# ######?## ### ## ##? | | ????????????????????????## ### ## ## | | ?????????????????????????### #### | | ???????????????????????????## #### | | ????????????????????????????# ## | | ????????????????????????????## | | ?????????????????????????????## ### ## | | ??????????????????????????????## ###### | | ???????????????????????????????## #?### | +----------------------------------------------------+ Best States ------------- Heat Dissipation 25 Energy Generation 15 Energy Capacity 250 Matter Stores 300 Matter Capacity 300 Sight Range 21 Terrain Scan Density 10 Armor Coverage 100 Propulsion Shielding 33 Evasion (%) 42 Item Schematics ----------------- None Robot Schematics ------------------ None Fabricated ------------ Nothing Alien Tech Used ----------------- None Achievements -------------- None Challenges ------------ None Game ------ Seed NuclearDefenseUnit Manual? 0 Play Time 00:22:02 Cumulative 125.4 hours Start 2024.08.08 @ 22:08:06 End 2024.08.08 @ 22:37:22 Sessions 3 Manual Loads 0 Difficulty Rogue Special Mode None Game No. 34 Rogue 15 Adventurer 17 Explorer 2 Win Type - Total 3 Types 2/0/1/0/0/0/0/0/0 Lore% 43 Gallery% 58 Achievement% 57 Wizard Run 0 Options --------- Layout 2 ASCII 0 Keyboard 1 Movement Vi Keybinds 0 Fullscreen 0 Font 20/SmallcapsGlow Map View 64x51 Zoom Use 0% Tactical HUD 1 Map Filters NONE Filters NONE Steam 1 RUN: af05b4f7-5807-4c70-957b-097409128c94